Cogmind - Beta 13 @@@ ROGUE MODE // 2024.05.14 @ 19:45:41 Player: That1Guy Result: Destroyed by G-34 Mercenary with Small Laser Performance ------------- Evolutions (1) 500 Regions Visited (4) 800 Robots Destroyed (22) 110 Value Destroyed (835) 835 Prototype IDs (0) 0 Alien Tech Used (0) 0 Bonus (200) 200 TOTAL SCORE: 2445 Bonus ------- Entered Garrisons 200 Cogmind --------- Core Integrity 0/400 Matter 279/300 Energy 100/100 System Corruption 2% Temperature Cool (6) Movement Core (150) Ox2 Location -9/Garrison Parts ------- > --- POWER (1) -------- (None) > --- PROPULSION (2) --- (None) > --- UTILITY (3) ------ Small Storage Unit > --- WEAPON (3) ------- Axe > --- INVENTORY (8) ---- Light Ion Engine Improved Flight Unit Cooling System High-capacity Matter Pod (200) High-capacity Matter Pod (200) Peak State ------------ > --- POWER ------------ Improved Ion Engine > --- PROPULSION ------- VSS Leg VSS Leg > --- UTILITY ---------- Small Storage Unit High-capacity Matter Pod Sensor Array > --- WEAPON ----------- Particle Gun Assault Rifle Axe > --- INVENTORY -------- Light Ion Engine Cooling System Large Storage Unit High-capacity Matter Pod [Rating: 17] Favorites ----------- Power Light Ion Engine Engine Light Ion Engine Propulsion VSS Leg Leg VSS Leg Wheel Wheel Utility Sensor Array Device Sensor Array Storage Small Storage Unit Weapon Axe Energy Gun Particle Gun Ballistic Gun Assault Rifle Launcher EMP Blaster Slashing Weapon Axe Build | -11 -10 -9 -9 -9 ------- Run | Yrd Mat Mat Sto Gar Slots Evolved 2 | . . 2 . . Power . | . . . . . Propulsion . | . . . . . Utility 1 | . . 1 . . Weapon 1 | . . 1 . . Parts Attached 30 | 5 . 10 12 3 Power 8 | 1 . 1 5 1 Engine 8 | 1 . 1 5 1 Core . | . . . . . Reactor . | . . . . . Propulsion 8 | 2 . 2 2 2 Treads . | . . . . . Leg 6 | . . 2 2 2 Wheel 2 | 2 . . . . Hover . | . . . . . Flight . | . . . . . Utility 6 | . . 5 1 . Device 2 | . . 1 1 . Storage 4 | . . 4 . . Processor . | . . . . . Hackware . | . . . . . Protection . | . . . . . Artifact . | . . . . . Weapon 8 | 2 . 2 4 . Energy Gun 3 | 1 . 1 1 . Energy Cannon . | . . . . . Ballistic Gun 2 | 1 . . 1 . Ballistic Cannon . | . . . . . Launcher 2 | . . . 2 . Special Weapon . | . . . . . Impact Weapon . | . . . . . Slashing Weapon 1 | . . 1 . . Piercing Weapon . | . . . . . Special Melee Weapon . | . . . . . Unidentified Prototypes . | . . . . . Parts Lost 12 | . 1 1 5 5 Power 1 | . . . . 1 Propulsion 5 | . . 1 1 3 Utility 1 | . . . 1 . Weapon 5 | . 1 . 3 1 Highest Loss Streak 5 | . 1 1 3 5 To Critical Strikes . | . . . . . Average Slot Usage (%) 80 | . 65 80 84 64 Engine 11 | . 14 11 11 11 Leg 15 | . . 6 20 21 Wheel 6 | . 28 15 . . Device 8 | . . 10 9 . Storage 12 | . . 12 13 11 Energy Gun 7 | . 8 9 7 . Ballistic Gun 7 | . 14 11 6 . Launcher 2 | . . . 3 10 Slashing Weapon 7 | . . 3 11 11 Naked Turns . | . . . . . Heaviest Build 33 | 7 7 33 24 19 Greatest Support 24 | 20 20 24 24 22 Greatest Overweight (x) 1 | . . 1 1 1 Average Overweight (x) . | . . . . . Largest Inventory Capacity 15 | 5 5 15 8 8 Average Capacity 6 | 5 5 5 8 8 Most Carried 8 | 2 2 5 8 7 Average Carried 4 | . 1 2 5 5 Final Capacity 8 | 5 5 8 8 8 Final Carried 8 | . 2 3 8 5 Class Distribution -------------------- 100% | Mutant Dominant Class ---------------- Mutant | -10/Materials Mutant | -9/Materials Mutant | -9/Storage Mutant | -9/Garrison Resources | -11 -10 -9 -9 -9 ----------- Run | Yrd Mat Mat Sto Gar Matter Collected 910 | 256 . 48 606 . Remotely . | . . . . . Salvage Created 845 | 48 . 18 651 128 Parts 48 | 2 . 1 32 13 Haulers Intercepted . | . . . . . Recyclers Shooed . | . . . . . Parts Field Recycled . | . . . . . Retrieved Matter . | . . . . . Parts Self-Destructed . | . . . . . Prevented . | . . . . . Kills | -11 -10 -9 -9 -9 ------- Run | Yrd Mat Mat Sto Gar Combat Hostiles Destroyed 20 | 1 . . 14 5 Melee 10 | . . . 9 1 Guns 6 | 1 . . 5 . AOE 4 | . . . . 4 Classes Destroyed 5 | 1 . 1 3 . Recycler 1 | . . . 1 . Watcher 1 | . . 1 . . Swarmer 6 | . . . 3 3 Grunt 10 | 1 . . 7 2 Sentry 4 | . . . 4 . Best Kill Streak 5 | 1 . 1 3 5 Combat Bots Only 5 | 1 . . 3 5 Max Kills in Single Turn 2 | 1 . 1 1 2 Gunslinging . | . . . . . Exploded 2 | . . . . 2 Melee 1 | . . . 1 1 Uniques/NPCs Destroyed . | . . . . . Combat | -11 -10 -9 -9 -9 -------- Run | Yrd Mat Mat Sto Gar Hostile Shots Fired 174 | 2 26 8 94 44 Missed 57 | 1 8 3 32 13 Damage Taken 1578 | 10 247 72 882 367 Core 480 | . 80 16 236 148 Absorbed by Shields . | . . . . . Regen/Repaired (Parts) 12 | . . . 12 . Core Remaining (%) 84 | 100 68 . . . Volleys Fired 21 | 2 . 2 13 4 Largest 2 | 2 . 2 2 1 Hottest 85 | 60 . 85 85 33 Shots Fired 38 | 4 . 4 26 4 Gun 32 | 4 . 4 24 . Cannon . | . . . . . Launcher 6 | . . . 2 4 Special . | . . . . . Kinetic 16 | 2 . 2 12 . Thermal 14 | . . 2 12 . Explosive . | . . . . . Electromagnetic 8 | 2 . . 2 4 Robot Hit Streak 18 | 2 . 3 18 . Robot Miss Streak 1 | 1 . 1 1 1 Penetration Max . | . . . . . Secondary Targets . | . . . . . Shots Hit Robots 65 | 3 . 2 57 3 Core Hits 27 | 2 . 2 17 6 Critical Kills . | . . . . . Critical Parts Destroyed . | . . . . . Critical Strikes 5 | . . . 5 . Burn 1 | . . . 1 . Sever 4 | . . . 4 . Melee Attacks 47 | . . . 44 3 Impact . | . . . . . Slashing 47 | . . . 44 3 Piercing . | . . . . . Sneak Attacks 1 | . . . 1 . Combat Hostiles . | . . . . . Follow-up Attacks . | . . . . . Damage Inflicted 1907 | 38 . 26 1639 204 Guns 326 | 38 . 26 262 . Cannons . | . . . . . Explosions 176 | . . . 79 97 Melee 1405 | . . . 1298 107 Ramming . | . . . . . Kinetic 147 | 14 . 11 122 . Thermal 179 | . . 15 140 24 Explosive 19 | . . . 19 . Electromagnetic 157 | 24 . . 60 73 Impact . | . . . . . Slashing 1405 | . . . 1298 107 Piercing . | . . . . . Highest Corruption 2 | . . . 2 2 Average Corruption 2 | . . . 2 2 Corruption Purged . | . . . . . Corruption Blocked . | . . . . . Effects 2 | . . . 1 1 Message Errors 1 | . . . 1 . Energy Discharges 1 | . . . . 1 Overload Shots . | . . . . . Overflow Damage 112 | . . . 103 9 Projectiles . | . . . . . Explosions 10 | . . . 1 9 Melee 102 | . . . 102 . Knockbacks . | . . . . . Impact . | . . . . . Kinetic . | . . . . . Secondary . | . . . . . Self-Inflicted Damage 94 | . . . 69 25 Shots 3 | . . . 1 2 Rammed . | . . . . . Targets Rammed . | . . . . . Kicked . | . . . . . Crushed . | . . . . . Highest Temperature 48 | 6 . 19 48 . Average Temperature 17 | 6 . 12 18 . Received Heat Transfer 684 | 6 120 27 393 138 Siege Activations . | . . . . . Robots Corrupted . | . . . . . Combat Hostiles . | . . . . . Parts Fried . | . . . . . Impact Corruptions . | . . . . . Robots Melted . | . . . . . Combat Hostiles . | . . . . . Parts Melted 1 | . . . . 1 Heat Transferred 494 | . . 37 407 50 Parts Sabotaged . | . . . . . Parts Stolen . | . . . . . Parts Stripped . | . . . . . Power Chain Reactions 3 | . . . . 3 Alert | -11 -10 -9 -9 -9 ------- Run | Yrd Mat Mat Sto Gar Peak Influence 288 | 20 78 78 248 288 Initial 63 | . 13 32 5 63 Average 103 | 2 43 42 150 118 Maximum Alert Level 1 | . . . 1 1 Low Security (%) 90 | 100 100 100 83 83 Level 1 9 | . . . 16 16 Level 2 . | . . . . . Level 3 . | . . . . . Level 4 . | . . . . . Level 5 . | . . . . . High Security . | . . . . . Max Security . | . . . . . Squads Dispatched 3 | . 1 . 2 . Investigation 1 | . . . 1 . Extermination . | . . . . . Reinforcement 2 | . 1 . 1 . Assault . | . . . . . Garrison . | . . . . . Intercept . | . . . . . Searches Triggered . | . . . . . Construction Impeded . | . . . . . Haulers Reinforced . | . . . . . Active Scanning Responses . | . . . . . Cargo Convoy Interrupts . | . . . . . Stealth | -11 -10 -9 -9 -9 --------- Run | Yrd Mat Mat Sto Gar Distress Signals 5 | . 2 3 . . Communications Jammed . | . . . . . Distress Signals . | . . . . . Times Spotted 49 | 1 15 5 16 12 Peak Tracking Total 12 | 1 12 2 5 5 Tactical Retreats 7 | . 2 2 1 2 Traps | -11 -10 -9 -9 -9 ------- Run | Yrd Mat Mat Sto Gar Traps Triggered 4 | . 1 . 2 1 Indirectly 1 | . . . . 1 Trap Hack Attempts . | . . . . . Triggered . | . . . . . Disarmed . | . . . . . Reprogrammed . | . . . . . Reused . | . . . . . Traps Extracted . | . . . . . Installed . | . . . . . Triggered . | . . . . . Machines | -11 -10 -9 -9 -9 ---------- Run | Yrd Mat Mat Sto Gar Machines Disabled 3 | . . . 2 1 Max in Single Turn 1 | . . . 1 1 Garrison Relay 1 | . . . . 1 Machines Repaired . | . . . . . Machines Dismantled . | . . . . . Machines Sabotaged . | . . . . . Overloaded Fab Kills . | . . . . . Hacking | -11 -10 -9 -9 -9 --------- Run | Yrd Mat Mat Sto Gar Machines Accessed 4 | . . 1 3 . Terminals 2 | . . 1 1 . Fabricators . | . . . . . Repair Stations 1 | . . . 1 . Recycling Units . | . . . . . Scanalyzers . | . . . . . Garrison Access 1 | . . . 1 . Total Hacks 14 | . . 6 8 . Successful 9 | . . 2 7 . Failed 5 | . . 4 1 . Catastrophic . | . . . . . Database Lockouts . | . . . . . Manual . | . . . . . Terminals 7 | . . 6 1 . Fabricators . | . . . . . Repair Stations 6 | . . . 6 . Recycling Units . | . . . . . Scanalyzers . | . . . . . Garrison Access 1 | . . . 1 . Terminal Hacks 3 | . . 2 1 . Record 1 | . . 1 . . Open Door 1 | . . . 1 . Locate Traps 1 | . . 1 . . Fabricator Hacks . | . . . . . Repair Station Hacks 5 | . . . 5 . Scan Component 3 | . . . 3 . Repair 2 | . . . 2 . Recycling Unit Hacks . | . . . . . Scanalyzer . | . . . . . Garrison Access Hacks 1 | . . . 1 . Unlock Access 1 | . . . 1 . Unauthorized Hacks . | . . . . . Terminals . | . . . . . Fabricators . | . . . . . Repair Stations . | . . . . . Recycling Units . | . . . . . Scanalyzers . | . . . . . Garrison Access . | . . . . . Data Cores Recovered . | . . . . . Used . | . . . . . Hacking Detections 2 | . . 1 1 . Full Trace Events 1 | . . . 1 . Feedback Events . | . . . . . Feedback Blocked . | . . . . . Robot Schematics Acquired . | . . . . . Robots Built . | . . . . . Authchips . | . . . . . Time . | . . . . . Total Robot Build Rating . | . . . . . Part Schematics Acquired . | . . . . . Parts Built . | . . . . . Authchips . | . . . . . Time . | . . . . . Total Part Build Rating . | . . . . . Parts Repaired 2 | . . . 2 . Time 52 | . . . 52 . Parts Recycled . | . . . . . Recycled Matter . | . . . . . Retrieved Matter . | . . . . . Retrieved Components . | . . . . . Parts Scanalyzed . | . . . . . Part Schematics Acquired . | . . . . . Parts Damaged . | . . . . . Bothacking | -11 -10 -9 -9 -9 ------------ Run | Yrd Mat Mat Sto Gar Used RIF Installer . | . . . . . Robots Hacked . | . . . . . Non-combat . | . . . . . Combat . | . . . . . Robot Hacks Applied . | . . . . . Relay Couplers Released 4 | . . . . 4 Machine Destruction 4 | . . . . 4 Fabnet Peak Effective % . | . . . . . Robots Rewired . | . . . . . Allies Hacked . | . . . . . Hacks Repelled . | . . . . . Allies | -11 -10 -9 -9 -9 -------- Run | Yrd Mat Mat Sto Gar Total Allies . | . . . . . Largest Group . | . . . . . Highest-Rated Group . | . . . . . Highest-Rated Ally . | . . . . . Total Orders . | . . . . . Ally Attacks . | . . . . . Total Damage . | . . . . . Kills . | . . . . . Allies Corrupted . | . . . . . Allies Melted . | . . . . . Intel | -11 -10 -9 -9 -9 ------- Run | Yrd Mat Mat Sto Gar Robot Analysis Total . | . . . . . Derelict Logs Recovered . | . . . . . Drone Launches . | . . . . . Drone Recoveries . | . . . . . Exploration | -11 -10 -9 -9 -9 ------------- Run | Yrd Mat Mat Sto Gar Turns Passed 1578 | 61 130 435 809 143 Spaces Moved 1193 | 63 152 445 418 115 Core 17 | 17 . . . . Treads . | . . . . . Legs 668 | . . 135 418 115 Wheels 508 | 46 152 310 . . Hover . | . . . . . Flight . | . . . . . Fastest Speed 50 | 50 80 80 90 105 Average Speed 93 | 71 80 83 107 105 Slowest Speed 190 | 80 80 95 190 190 Overloaded Moves . | . . . . . Propulsion Burnouts . | . . . . . Robots Hopped . | . . . . . Cave-ins Triggered . | . . . . . Exploration Rate (%) 23 | 5 32 29 34 18 Regions Visited 4 Branch Regions 1 Pre-discovered Areas . | . . . . . Known Exits Taken 1 | . . . 1 . Unknown Exits Taken 3 | 1 1 1 . . Scrap Searched . | . . . . . Spaces Dug . | . . . . . Terrain Destroyed 18 | . . . 13 5 Melee . | . . . . . Projectile . | . . . . . AOE 18 | . . . 13 5 Terrain Rammed . | . . . . . Walls Destroyed . | . . . . . Machines Disabled . | . . . . . Actions | -11 -10 -9 -9 -9 --------- Run | Yrd Mat Mat Sto Gar Total 1537 | 74 160 505 671 127 Wait 217 | . 7 36 173 1 Move 1189 | 62 151 444 417 115 Hop . | . . . . . Pick Up 24 | 5 2 9 8 . Fast Attach 3 | . . . 3 . Attach 17 | 5 . 8 2 2 Detach 3 | . . 2 1 . Swap 10 | . . 2 7 1 Drop 6 | . . 2 3 1 Fire 21 | 2 . 2 13 4 Melee 47 | . . . 44 3 Ram . | . . . . . Kick . | . . . . . Crush . | . . . . . Escape Stasis . | . . . . . Rewire . | . . . . . Trap . | . . . . . Miscellaneous . | . . . . . Route ------- -11/Scrapyard -10/Materials -9/Materials (discovered 3 exits: [*Mat] / [*Min] / *Sto) -9/Storage -9/Garrison History --------- Turn | Location | Event 2 | -11/Scrapyard | Met Revision 17 46 | -11/Scrapyard | Discovered new exit (range 8) 62 | -11/Scrapyard | Entered Materials 185 | -10/Materials | Discovered new exit (range 7) 192 | -10/Materials | Entered another Materials area 192 | -9/Materials | Evolved 2 slots: Utility x1, Weapon x1 238 | -9/Materials | Discovered new exit (range 15) 301 | -9/Materials | Build established: Mutant 605 | -9/Materials | Discovered new exit (range 10) 613 | -9/Materials | Discovered new exit (range 10) 627 | -9/Materials | Entered Storage 735 | -9/Storage | Repaired Assault Rifle 761 | -9/Storage | Repaired Sensor Array 1304 | -9/Storage | Identified exit to Garrison 1370 | -9/Storage | Core integrity fell below 50% 1413 | -9/Storage | Lost 3 parts (1n1u1w) 1436 | -9/Storage | Entered Garrison 1484 | -9/Garrison | Triggered checkpoint 1544 | -9/Garrison | Triggered checkpoint 1561 | -9/Garrison | Garrison Relay disabled 1569 | -9/Garrison | Core integrity fell below 20% 1579 | -9/Garrison | Destroyed by G-34 Mercenary with Small Laser Last Messages --------------- VSS Leg destroyed. S-10 Pest destroyed. Chain reaction triggered in Corrupted Lgt. Ion Engine. Flight Unit melted. S-10 Pest destroyed. Chain reaction triggered in Corrupted Lgt. Ion Engine. G-34 Mercenary destroyed. Garrison Relay disabled. Relay Coupler [Grunt] tumbles out of relay unit. Relay Coupler [NC] tumbles out of relay unit. Relay Coupler [Grunt] tumbles out of relay unit. EMP Blaster destroyed. Destroyed EMP Blaster. Imp. Ion Engine destroyed. VSS Leg destroyed. Aluminum Leg destroyed. G-34 Mercenary destroyed. Map ----- +----------------------------------------------------+ | | | | | | | | | | | | | | | | | | | | | | | | | | | | | ?????????????????????????????????????????????? | | ?????????????????????????????????????????????? | | ?????????????????????????????????????????????? | | ?????????????????????????????????????????????? | | ?????????????????????????????????????????????? | | ?????????????????????????????????????????????? | | ?????????????????????????????????????????????? | | ?????????????????????????????????????????????? | | ?????????????????????????????#######?????????? | | ?????????????????????####?####" !""#?????????? | | ????????????????????##;; ## ###!!!##?????????? | | ????????????????????# ^ g@= [ #?????????? | | ????????????? ;^ %g%[ =%= #?????????? | | ?????????????######## ;## % #######?????????? | | ????????????????????# #?# #???????????????? | | ????????????????????# #?#####???????????????? | | ????????????????????# #?????????????????????? | | ????????????????????# #?????????????????????? | | ????????????????????# #?????????????????????? | | ????????????????????# #?????????????????????? | | ??????????????????### #?????????????????????? | | ??????????????????# #?????????????????????? | | ??????????????????# ! #?????????????????????? | | ??????????????????# #?????????????????????? | | ??????????????????### #?????????????????????? | | ????????????????????# #?????????????????????? | | ????????????????????# #?????????????????????? | | ????????????????????# #?????????????????????? | | ????????????????????# #?????????????????????? | | ????????????????????# #?????????????????????? | | ????????????????????# #?????????????????????? | | ????????????????????# #?????????????????????? | | ##################### #?????????????????????? | | #?????????????????????? | | #?????????????????????? | | ######################?????????????????????? | +----------------------------------------------------+ Best States ------------- Heat Dissipation 28 Energy Generation 12 Energy Capacity 265 Matter Stores 500 Matter Capacity 700 Sight Range 16 Robot Scan Range 14 Terrain Scan Density 10 Evasion (%) 57 Item Schematics ----------------- None Robot Schematics ------------------ None Fabricated ------------ Nothing Alien Tech Used ----------------- None Achievements -------------- Crack Shot Challenges ------------ None Game ------ Seed KineticHellfireTendrils Manual? 0 Play Time 00:42:28 Cumulative 1.4 hours Start 2024.05.14 @ 18:58:46 End 2024.05.14 @ 19:45:41 Sessions 1 Manual Loads 0 Difficulty Rogue Special Mode None Game No. 2 Rogue 2 Adventurer 0 Explorer 0 Win Type - Total 0 Types 0/0/0/0/0/0/0/0/0 Lore% 0 Gallery% 3 Achievement% 2 Wizard Run 0 Options --------- Layout 1 ASCII 0 Keyboard 0 Movement Mouse Keybinds 0 Fullscreen 1 Font 24/Smallcaps Map View 50x35 Zoom Use 0% Tactical HUD 0 Map Filters NONE Filters NONE Steam 1 RUN: e171d78a-f391-40d7-9ca7-e15159310442